{"text_format":"3","workbook":"xlsx","n_sheets":4,"sheets":["Algus","PROJEKTI PARAMEETRID","PROJEKTI ÜKSIKASJAD","PROJEKTI KOKKUVÕTTED"],"not_rendered":{"charts":2,"defined_names":3,"pivot_tables":1},"read":"whole","date_system":"1900"}

{"sheet":"Algus","index":0,"n_rows":8,"n_cols":2,"rows_kept":8}
[null,"TEAVE SELLE MALLI KOHTA"]
[]
[null,"Kasutage seda töövihikut projektide kavandamine advokaadibüroodele projekti parameetrid, projekti üksikasjad ja projekti kokkuvõtted jälgimiseks."]
[null,"Sisestage töölehel Projekti parameetrid ettevõtte nimi ja see värskendatakse automaatselt teistel töölehtedel."]
[null,"Sisestage teave töölehele Projekti parameetrid, et värskendada tulpdiagramme, ning töölehele Projekti üksikasjad. Töölehe Projekti kokkuvõtted PivotTable-liigendtabel värskendatakse automaatselt."]
[null,"Märkus.  "]
[null,"Iga töölehe veerus A on toodud lisajuhised. See tekst on tahtlikult peidetud. Teksti eemaldamiseks valige veerg A ja seejärel käsk KUSTUTA. Teksti kuvamiseks valige veerg A ja muutke seejärel fondi värvi."]
[null,"Töölehe tabelite kohta lisateabe saamiseks vajutage tabelis tõstuklahvi (Shift) koos klahviga F10, valige käsk TABEL ja seejärel valige käsk ASETEKST. Töölehel Projekti kokkuvõtted oleva PivotTable-liigendtabeli puhul vajutage tabelis tõstuklahvi (Shift) ja seejärel klahvi F10, valige PIVOTTABLE-LIIGENDTABELI SUVANDID ja seejärel valige vahekaart ASETEKST."]

{"sheet":"PROJEKTI PARAMEETRID","index":1,"n_rows":19,"n_cols":9,"rows_kept":19}
["Looge sellel töölehel Projekti parameetrid. Paremal asuvasse lahtrisse sisestage ettevõtte nimi. Selle veeru lahtritest leiate kasulikke juhiseid.","Ettevõtte nimi"]
["Paremal asuvas lahtris on selle töölehe pealkiri.","Projektide kavandamine advokaadibüroodele"]
["Paremal asuvas lahtris on konfidentsiaalsusteade.",{"$f":"B1&\" – konfidentsiaalne\"","v":"Ettevõtte nimi – konfidentsiaalne"}]
["Näpunäited on paremal asuvas lahtris.","Varjustatud lahtrite väärtus arvutatakse teie eest. Te ei pea neisse midagi sisestama."]
["Sisestage üksikasjad parempoolsest lahtrist algavasse tabelisse Parameetrid. Järgmine juhis on lahtris A12.","PROJEKTI TÜÜP","TÄISOSANIK","ÄRIÕIGUSE ADVOKAAT","KAITSJA","INTELLEKTUAALSE OMANDI ADVOKAAT","PANKROTIADVOKAAT","HALDUSPERSONAL","KOKKU"]
[null,"Ettevõtte asutamine",{"v":0.1,"d":"10%"},{"v":0.4,"d":"40%"},{"v":0,"d":"0%"},{"v":0,"d":"0%"},{"v":0,"d":"0%"},{"v":0.5,"d":"50%"},{"$f":"SUM(Parameetrid[[#This Row],[TÄISOSANIK]:[HALDUSPERSONAL]])","v":{"v":1,"d":"100%"}}]
[null,"Ettevõtte omandamine",{"v":0.1,"d":"10%"},{"v":0.4,"d":"40%"},{"v":0,"d":"0%"},{"v":0.1,"d":"10%"},{"v":0,"d":"0%"},{"v":0.4,"d":"40%"},{"$f":"SUM(Parameetrid[[#This Row],[TÄISOSANIK]:[HALDUSPERSONAL]])","v":{"v":1,"d":"100%"}}]
[null,"Tootevastutuse kaitse",{"v":0.2,"d":"20%"},{"v":0,"d":"0%"},{"v":0.5,"d":"50%"},{"v":0,"d":"0%"},{"v":0,"d":"0%"},{"v":0.3,"d":"30%"},{"$f":"SUM(Parameetrid[[#This Row],[TÄISOSANIK]:[HALDUSPERSONAL]])","v":{"v":1,"d":"100%"}}]
[null,"Patenditaotlus",{"v":0.1,"d":"10%"},{"v":0,"d":"0%"},{"v":0,"d":"0%"},{"v":0.6,"d":"60%"},{"v":0,"d":"0%"},{"v":0.3,"d":"30%"},{"$f":"SUM(Parameetrid[[#This Row],[TÄISOSANIK]:[HALDUSPERSONAL]])","v":{"v":1,"d":"100%"}}]
[null,"Töötaja hagi",{"v":0.2,"d":"20%"},{"v":0.1,"d":"10%"},{"v":0.4,"d":"40%"},{"v":0,"d":"0%"},{"v":0,"d":"0%"},{"v":0.3,"d":"30%"},{"$f":"SUM(Parameetrid[[#This Row],[TÄISOSANIK]:[HALDUSPERSONAL]])","v":{"v":1,"d":"100%"}}]
[null,"Pankrott",{"v":0.1,"d":"10%"},{"v":0.2,"d":"20%"},{"v":0,"d":"0%"},{"v":0,"d":"0%"},{"v":0.4,"d":"40%"},{"v":0.3,"d":"30%"},{"$f":"SUM(Parameetrid[[#This Row],[TÄISOSANIK]:[HALDUSPERSONAL]])","v":{"v":1,"d":"100%"}}]
["Sisestage kombineeritud hinnad paremal asuvatesse lahtritesse C12–H12. Järgmised juhised on toodud lahtris A14.","Kombineeritud hinnad",{"v":350,"d":"350 €"},{"v":250,"d":"250 €"},{"v":300,"d":"300 €"},{"v":275,"d":"275 €"},{"v":225,"d":"225 €"},{"v":125,"d":"125 €"}]
[]
["Paremal asuvas lahtris asub kavandatud ja tegelik hind võrdlust kuvav tulpdiagramm, lahtris F14 asub kavandatud ja tegelikud tunnid võrdlust kuvav tulpdiagramm."]
[null,null,"TÄISOSANIK","ÄRI","KAITSJA","INTELLEKTUAALNE OMAND","PANKROTT","HALDUSPERSONAL"]
[null,"KAVANDATUD HIND",{"$f":"SUBTOTAL(109,Andmed[TÄISOSANIK])","v":{"v":78750,"d":"78,750.00 €"}},{"$f":"SUBTOTAL(109,Andmed[ÄRIÕIGUSE ADVOKAAT])","v":{"v":66250,"d":"66,250.00 €"}},{"$f":"SUBTOTAL(109,Andmed[KAITSJA])","v":{"v":105000,"d":"105,000.00 €"}},{"$f":"SUBTOTAL(109,Andmed[INTELLEKTUAALSE OMANDI ADVOKAAT])","v":{"v":35750,"d":"35,750.00 €"}},{"$f":"SUBTOTAL(109,Andmed[PANKROTIADVOKAAT])","v":{"v":0,"d":"0.00 €"}},{"$f":"SUBTOTAL(109,Andmed[HALDUSPERSONAL])","v":{"v":66250,"d":"66,250.00 €"}}]
[null,"TEGELIK HIND",{"$f":"SUBTOTAL(109,Andmed[TÄISOSANIK 2])","v":{"v":79275,"d":"79,275.00 €"}},{"$f":"SUBTOTAL(109,Andmed[ÄRIÕIGUSE ADVOKAAT 2])","v":{"v":67375,"d":"67,375.00 €"}},{"$f":"SUBTOTAL(109,Andmed[KAITSJA 2])","v":{"v":105600,"d":"105,600.00 €"}},{"$f":"SUBTOTAL(109,Andmed[INTELLEKTUAALSE OMANDI ADVOKAAT 2])","v":{"v":34650,"d":"34,650.00 €"}},{"$f":"SUBTOTAL(109,Andmed[PANKROTIADVOKAAT 2])","v":{"v":0,"d":"0.00 €"}},{"$f":"SUBTOTAL(109,Andmed[HALDUSPERSONAL 2])","v":{"v":67000,"d":"67,000.00 €"}}]
[null,"KAVANDATUD TUNNID",{"$f":"C16/$C$12","v":{"v":225,"d":"225.00"}},{"$f":"D16/$C$12","v":{"v":189.28571428571428,"d":"189.29"}},{"v":300,"d":"300.00"},{"v":102.14285714285714,"d":"102.14"},{"v":0,"d":"0.00"},{"v":189.28571428571428,"d":"189.29"}]
[null,"TEGELIKUD TUNNID",{"$f":"C17/$C$12","v":{"v":226.5,"d":"226.50"}},{"$f":"D17/$C$12","v":{"v":192.5,"d":"192.50"}},{"$f":"E17/$C$12","v":{"v":301.7142857142857,"d":"301.71"}},{"$f":"F17/$C$12","v":{"v":99,"d":"99.00"}},{"$f":"G17/$C$12","v":{"v":0,"d":"0.00"}},{"$f":"H17/$C$12","v":{"v":191.42857142857142,"d":"191.43"}}]

{"sheet":"PROJEKTI ÜKSIKASJAD","index":2,"n_rows":10,"n_cols":25,"rows_kept":10,"merged":[[1,24,8,28]]}
["Looge sellel töölehel Projekti üksikasjad. Parempoolses lahtris värskendatakse ettevõtte nimi automaatselt. Selle veeru lahtritest leiate kasulikke juhiseid. Liikuge alustamiseks noolega alla.",{"$f":"'PROJEKTI PARAMEETRID'!B1","v":"Ettevõtte nimi"}]
["Selle töölehe pealkiri on parempoolses lahtris ning lahtris Y2 näpunäide.",{"$f":"'PROJEKTI PARAMEETRID'!B2","v":"Projektide kavandamine advokaadibüroodele"},{"$nulls":22},"TEAVE:\nRea lisamiseks valige tabeli sisuosas paremas allnurgas lahter (mitte kokkuvõtterida) ja vajutage tabeldusklahvi (Tab) seal, kuhu soovite rea lisada või tõstuklahvi (Shift) ning seejärel tabelis klahvi F10 ning valige Lisa | Tabeliread üles/Tabelirida alla.\nVeenduge, et kõik kasutamata read on kustutatud, kuna PivotTable-liigendtabel PROJEKTI KOKKUVÕTTED kasutab kõiki tabeli lahtreid ning annab vastasel korral vigaseid tulemeid."]
["Paremal asuvas lahtris on konfidentsiaalsusteade.",{"$f":"'PROJEKTI PARAMEETRID'!B3","v":"Ettevõtte nimi – konfidentsiaalne"}]
["Sisestage teave parempoolsest lahtrist algavasse tabelisse „Üksikasjad“. Paremal asuva tabeli „Üksikasjad“ projekti tüüp värskendatakse automaatselt töölehe Projekti parameetrid tabeli Parameetrid järgi.","PROJEKTI NIMI","PROJEKTI TÜÜP","HINNANGULINE ALGUSAEG","HINNANGULINE LÕPPAEG","TEGELIK ALGUSAEG","TEGELIK LÕPPAEG","HINNANGULINE TÖÖ MAHT","TEGELIK TÖÖ MAHT","HINNANGULINE KESTUS","TEGELIK KESTUS","TÄISOSANIK","ÄRIÕIGUSE ADVOKAAT","KAITSJA","INTELLEKTUAALSE OMANDI ADVOKAAT","PANKROTIADVOKAAT","HALDUSPERSONAL","TÄISOSANIK 2","ÄRIÕIGUSE ADVOKAAT 2","KAITSJA 2","INTELLEKTUAALSE OMANDI ADVOKAAT 2","PANKROTIADVOKAAT 2","HALDUSPERSONAL 2"]
[null,"Projekt 1","Ettevõtte asutamine",{"$f":"TODAY()","v":"2019-02-18"},{"$f":"TODAY()+60","v":"2019-04-19"},{"$f":"TODAY()+10","v":"2019-02-28"},{"$f":"TODAY()+65","v":"2019-04-24"},200,220,{"$f":"DAYS360(Andmed[[#This Row],[HINNANGULINE ALGUSAEG]],Andmed[[#This Row],[HINNANGULINE LÕPPAEG]],FALSE)","v":61},{"$f":"DAYS360(Andmed[[#This Row],[TEGELIK ALGUSAEG]],Andmed[[#This Row],[TEGELIK LÕPPAEG]],FALSE)","v":54},{"$f":"INDEX(Parameetrid[],MATCH(Andmed[[#This Row],[PROJEKTI TÜÜP]],Parameetrid[PROJEKTI TÜÜP],0),MATCH(Andmed[[#Headers],[TÄISOSANIK]],Parameetrid[#Headers],0))*INDEX('PROJEKTI PARAMEETRID'!$B$12:$H$12,1,MATCH(Andmed[[#Headers],[TÄISOSANIK]],Parameetrid[#Headers],0))*Andmed[[#This Row],[HINNANGULINE TÖÖ MAHT]]","v":{"v":7000,"d":"7,000 €"}},{"$f":"INDEX(Parameetrid[],MATCH(Andmed[[#This Row],[PROJEKTI TÜÜP]],Parameetrid[PROJEKTI TÜÜP],0),MATCH(Andmed[[#Headers],[ÄRIÕIGUSE ADVOKAAT]],Parameetrid[#Headers],0))*INDEX('PROJEKTI PARAMEETRID'!$B$12:$H$12,1,MATCH(Andmed[[#Headers],[ÄRIÕIGUSE ADVOKAAT]],Parameetrid[#Headers],0))*Andmed[[#This Row],[HINNANGULINE TÖÖ MAHT]]","v":{"v":20000,"d":"20,000 €"}},{"$f":"INDEX(Parameetrid[],MATCH(Andmed[[#This Row],[PROJEKTI TÜÜP]],Parameetrid[PROJEKTI TÜÜP],0),MATCH(Andmed[[#Headers],[KAITSJA]],Parameetrid[#Headers],0))*INDEX('PROJEKTI PARAMEETRID'!$B$12:$H$12,1,MATCH(Andmed[[#Headers],[KAITSJA]],Parameetrid[#Headers],0))*Andmed[[#This Row],[HINNANGULINE TÖÖ MAHT]]","v":{"v":0,"d":"0 €"}},{"$f":"INDEX(Parameetrid[],MATCH(Andmed[[#This Row],[PROJEKTI TÜÜP]],Parameetrid[PROJEKTI TÜÜP],0),MATCH(Andmed[[#Headers],[INTELLEKTUAALSE OMANDI ADVOKAAT]],Parameetrid[#Headers],0))*INDEX('PROJEKTI PARAMEETRID'!$B$12:$H$12,1,MATCH(Andmed[[#Headers],[INTELLEKTUAALSE OMANDI ADVOKAAT]],Parameetrid[#Headers],0))*Andmed[[#This Row],[HINNANGULINE TÖÖ MAHT]]","v":{"v":0,"d":"0 €"}},{"$f":"INDEX(Parameetrid[],MATCH(Andmed[[#This Row],[PROJEKTI TÜÜP]],Parameetrid[PROJEKTI TÜÜP],0),MATCH(Andmed[[#Headers],[PANKROTIADVOKAAT]],Parameetrid[#Headers],0))*INDEX('PROJEKTI PARAMEETRID'!$B$12:$H$12,1,MATCH(Andmed[[#Headers],[PANKROTIADVOKAAT]],Parameetrid[#Headers],0))*Andmed[[#This Row],[HINNANGULINE TÖÖ MAHT]]","v":{"v":0,"d":"0 €"}},{"$f":"INDEX(Parameetrid[],MATCH(Andmed[[#This Row],[PROJEKTI TÜÜP]],Parameetrid[PROJEKTI TÜÜP],0),MATCH(Andmed[[#Headers],[HALDUSPERSONAL]],Parameetrid[#Headers],0))*INDEX('PROJEKTI PARAMEETRID'!$B$12:$H$12,1,MATCH(Andmed[[#Headers],[HALDUSPERSONAL]],Parameetrid[#Headers],0))*Andmed[[#This Row],[HINNANGULINE TÖÖ MAHT]]","v":{"v":12500,"d":"12,500 €"}},{"$f":"INDEX(Parameetrid[],MATCH(Andmed[[#This Row],[PROJEKTI TÜÜP]],Parameetrid[PROJEKTI TÜÜP],0),MATCH(Andmed[[#Headers],[TÄISOSANIK]],Parameetrid[#Headers],0))*INDEX('PROJEKTI PARAMEETRID'!$B$12:$H$12,1,MATCH(Andmed[[#Headers],[TÄISOSANIK]],Parameetrid[#Headers],0))*Andmed[[#This Row],[TEGELIK TÖÖ MAHT]]","v":{"v":7700,"d":"7,700 €"}},{"$f":"INDEX(Parameetrid[],MATCH(Andmed[[#This Row],[PROJEKTI TÜÜP]],Parameetrid[PROJEKTI TÜÜP],0),MATCH(Andmed[[#Headers],[ÄRIÕIGUSE ADVOKAAT]],Parameetrid[#Headers],0))*INDEX('PROJEKTI PARAMEETRID'!$B$12:$H$12,1,MATCH(Andmed[[#Headers],[ÄRIÕIGUSE ADVOKAAT]],Parameetrid[#Headers],0))*Andmed[[#This Row],[TEGELIK TÖÖ MAHT]]","v":{"v":22000,"d":"22,000 €"}},{"$f":"INDEX(Parameetrid[],MATCH(Andmed[[#This Row],[PROJEKTI TÜÜP]],Parameetrid[PROJEKTI TÜÜP],0),MATCH(Andmed[[#Headers],[KAITSJA]],Parameetrid[#Headers],0))*INDEX('PROJEKTI PARAMEETRID'!$B$12:$H$12,1,MATCH(Andmed[[#Headers],[KAITSJA]],Parameetrid[#Headers],0))*Andmed[[#This Row],[TEGELIK TÖÖ MAHT]]","v":{"v":0,"d":"0 €"}},{"$f":"INDEX(Parameetrid[],MATCH(Andmed[[#This Row],[PROJEKTI TÜÜP]],Parameetrid[PROJEKTI TÜÜP],0),MATCH(Andmed[[#Headers],[INTELLEKTUAALSE OMANDI ADVOKAAT]],Parameetrid[#Headers],0))*INDEX('PROJEKTI PARAMEETRID'!$B$12:$H$12,1,MATCH(Andmed[[#Headers],[INTELLEKTUAALSE OMANDI ADVOKAAT]],Parameetrid[#Headers],0))*Andmed[[#This Row],[TEGELIK TÖÖ MAHT]]","v":{"v":0,"d":"0 €"}},{"$f":"INDEX(Parameetrid[],MATCH(Andmed[[#This Row],[PROJEKTI TÜÜP]],Parameetrid[PROJEKTI TÜÜP],0),MATCH(Andmed[[#Headers],[PANKROTIADVOKAAT]],Parameetrid[#Headers],0))*INDEX('PROJEKTI PARAMEETRID'!$B$12:$H$12,1,MATCH(Andmed[[#Headers],[PANKROTIADVOKAAT]],Parameetrid[#Headers],0))*Andmed[[#This Row],[TEGELIK TÖÖ MAHT]]","v":{"v":0,"d":"0 €"}},{"$f":"INDEX(Parameetrid[],MATCH(Andmed[[#This Row],[PROJEKTI TÜÜP]],Parameetrid[PROJEKTI TÜÜP],0),MATCH(Andmed[[#Headers],[HALDUSPERSONAL]],Parameetrid[#Headers],0))*INDEX('PROJEKTI PARAMEETRID'!$B$12:$H$12,1,MATCH(Andmed[[#Headers],[HALDUSPERSONAL]],Parameetrid[#Headers],0))*Andmed[[#This Row],[TEGELIK TÖÖ MAHT]]","v":{"v":13750,"d":"13,750 €"}}]
[null,"Projekt 2","Ettevõtte omandamine",{"$f":"TODAY()+30","v":"2019-03-20"},{"$f":"TODAY()+100","v":"2019-05-29"},{"$f":"TODAY()+40","v":"2019-03-30"},{"$f":"TODAY()+110","v":"2019-06-08"},400,390,{"$f":"DAYS360(Andmed[[#This Row],[HINNANGULINE ALGUSAEG]],Andmed[[#This Row],[HINNANGULINE LÕPPAEG]],FALSE)","v":69},{"$f":"DAYS360(Andmed[[#This Row],[TEGELIK ALGUSAEG]],Andmed[[#This Row],[TEGELIK LÕPPAEG]],FALSE)","v":68},{"$f":"INDEX(Parameetrid[],MATCH(Andmed[[#This Row],[PROJEKTI TÜÜP]],Parameetrid[PROJEKTI TÜÜP],0),MATCH(Andmed[[#Headers],[TÄISOSANIK]],Parameetrid[#Headers],0))*INDEX('PROJEKTI PARAMEETRID'!$B$12:$H$12,1,MATCH(Andmed[[#Headers],[TÄISOSANIK]],Parameetrid[#Headers],0))*Andmed[[#This Row],[HINNANGULINE TÖÖ MAHT]]","v":{"v":14000,"d":"14,000 €"}},{"$f":"INDEX(Parameetrid[],MATCH(Andmed[[#This Row],[PROJEKTI TÜÜP]],Parameetrid[PROJEKTI TÜÜP],0),MATCH(Andmed[[#Headers],[ÄRIÕIGUSE ADVOKAAT]],Parameetrid[#Headers],0))*INDEX('PROJEKTI PARAMEETRID'!$B$12:$H$12,1,MATCH(Andmed[[#Headers],[ÄRIÕIGUSE ADVOKAAT]],Parameetrid[#Headers],0))*Andmed[[#This Row],[HINNANGULINE TÖÖ MAHT]]","v":{"v":40000,"d":"40,000 €"}},{"$f":"INDEX(Parameetrid[],MATCH(Andmed[[#This Row],[PROJEKTI TÜÜP]],Parameetrid[PROJEKTI TÜÜP],0),MATCH(Andmed[[#Headers],[KAITSJA]],Parameetrid[#Headers],0))*INDEX('PROJEKTI PARAMEETRID'!$B$12:$H$12,1,MATCH(Andmed[[#Headers],[KAITSJA]],Parameetrid[#Headers],0))*Andmed[[#This Row],[HINNANGULINE TÖÖ MAHT]]","v":{"v":0,"d":"0 €"}},{"$f":"INDEX(Parameetrid[],MATCH(Andmed[[#This Row],[PROJEKTI TÜÜP]],Parameetrid[PROJEKTI TÜÜP],0),MATCH(Andmed[[#Headers],[INTELLEKTUAALSE OMANDI ADVOKAAT]],Parameetrid[#Headers],0))*INDEX('PROJEKTI PARAMEETRID'!$B$12:$H$12,1,MATCH(Andmed[[#Headers],[INTELLEKTUAALSE OMANDI ADVOKAAT]],Parameetrid[#Headers],0))*Andmed[[#This Row],[HINNANGULINE TÖÖ MAHT]]","v":{"v":11000,"d":"11,000 €"}},{"$f":"INDEX(Parameetrid[],MATCH(Andmed[[#This Row],[PROJEKTI TÜÜP]],Parameetrid[PROJEKTI TÜÜP],0),MATCH(Andmed[[#Headers],[PANKROTIADVOKAAT]],Parameetrid[#Headers],0))*INDEX('PROJEKTI PARAMEETRID'!$B$12:$H$12,1,MATCH(Andmed[[#Headers],[PANKROTIADVOKAAT]],Parameetrid[#Headers],0))*Andmed[[#This Row],[HINNANGULINE TÖÖ MAHT]]","v":{"v":0,"d":"0 €"}},{"$f":"INDEX(Parameetrid[],MATCH(Andmed[[#This Row],[PROJEKTI TÜÜP]],Parameetrid[PROJEKTI TÜÜP],0),MATCH(Andmed[[#Headers],[HALDUSPERSONAL]],Parameetrid[#Headers],0))*INDEX('PROJEKTI PARAMEETRID'!$B$12:$H$12,1,MATCH(Andmed[[#Headers],[HALDUSPERSONAL]],Parameetrid[#Headers],0))*Andmed[[#This Row],[HINNANGULINE TÖÖ MAHT]]","v":{"v":20000,"d":"20,000 €"}},{"$f":"INDEX(Parameetrid[],MATCH(Andmed[[#This Row],[PROJEKTI TÜÜP]],Parameetrid[PROJEKTI TÜÜP],0),MATCH(Andmed[[#Headers],[TÄISOSANIK]],Parameetrid[#Headers],0))*INDEX('PROJEKTI PARAMEETRID'!$B$12:$H$12,1,MATCH(Andmed[[#Headers],[TÄISOSANIK]],Parameetrid[#Headers],0))*Andmed[[#This Row],[TEGELIK TÖÖ MAHT]]","v":{"v":13650,"d":"13,650 €"}},{"$f":"INDEX(Parameetrid[],MATCH(Andmed[[#This Row],[PROJEKTI TÜÜP]],Parameetrid[PROJEKTI TÜÜP],0),MATCH(Andmed[[#Headers],[ÄRIÕIGUSE ADVOKAAT]],Parameetrid[#Headers],0))*INDEX('PROJEKTI PARAMEETRID'!$B$12:$H$12,1,MATCH(Andmed[[#Headers],[ÄRIÕIGUSE ADVOKAAT]],Parameetrid[#Headers],0))*Andmed[[#This Row],[TEGELIK TÖÖ MAHT]]","v":{"v":39000,"d":"39,000 €"}},{"$f":"INDEX(Parameetrid[],MATCH(Andmed[[#This Row],[PROJEKTI TÜÜP]],Parameetrid[PROJEKTI TÜÜP],0),MATCH(Andmed[[#Headers],[KAITSJA]],Parameetrid[#Headers],0))*INDEX('PROJEKTI PARAMEETRID'!$B$12:$H$12,1,MATCH(Andmed[[#Headers],[KAITSJA]],Parameetrid[#Headers],0))*Andmed[[#This Row],[TEGELIK TÖÖ MAHT]]","v":{"v":0,"d":"0 €"}},{"$f":"INDEX(Parameetrid[],MATCH(Andmed[[#This Row],[PROJEKTI TÜÜP]],Parameetrid[PROJEKTI TÜÜP],0),MATCH(Andmed[[#Headers],[INTELLEKTUAALSE OMANDI ADVOKAAT]],Parameetrid[#Headers],0))*INDEX('PROJEKTI PARAMEETRID'!$B$12:$H$12,1,MATCH(Andmed[[#Headers],[INTELLEKTUAALSE OMANDI ADVOKAAT]],Parameetrid[#Headers],0))*Andmed[[#This Row],[TEGELIK TÖÖ MAHT]]","v":{"v":10725,"d":"10,725 €"}},{"$f":"INDEX(Parameetrid[],MATCH(Andmed[[#This Row],[PROJEKTI TÜÜP]],Parameetrid[PROJEKTI TÜÜP],0),MATCH(Andmed[[#Headers],[PANKROTIADVOKAAT]],Parameetrid[#Headers],0))*INDEX('PROJEKTI PARAMEETRID'!$B$12:$H$12,1,MATCH(Andmed[[#Headers],[PANKROTIADVOKAAT]],Parameetrid[#Headers],0))*Andmed[[#This Row],[TEGELIK TÖÖ MAHT]]","v":{"v":0,"d":"0 €"}},{"$f":"INDEX(Parameetrid[],MATCH(Andmed[[#This Row],[PROJEKTI TÜÜP]],Parameetrid[PROJEKTI TÜÜP],0),MATCH(Andmed[[#Headers],[HALDUSPERSONAL]],Parameetrid[#Headers],0))*INDEX('PROJEKTI PARAMEETRID'!$B$12:$H$12,1,MATCH(Andmed[[#Headers],[HALDUSPERSONAL]],Parameetrid[#Headers],0))*Andmed[[#This Row],[TEGELIK TÖÖ MAHT]]","v":{"v":19500,"d":"19,500 €"}}]
[null,"Projekt 3","Tootevastutuse kaitse",{"$f":"TODAY()+150","v":"2019-07-18"},{"$f":"TODAY()+150","v":"2019-07-18"},{"$f":"TODAY()+150","v":"2019-07-18"},{"$f":"TODAY()+170","v":"2019-08-07"},500,500,{"$f":"DAYS360(Andmed[[#This Row],[HINNANGULINE ALGUSAEG]],Andmed[[#This Row],[HINNANGULINE LÕPPAEG]],FALSE)","v":0},{"$f":"DAYS360(Andmed[[#This Row],[TEGELIK ALGUSAEG]],Andmed[[#This Row],[TEGELIK LÕPPAEG]],FALSE)","v":19},{"$f":"INDEX(Parameetrid[],MATCH(Andmed[[#This Row],[PROJEKTI TÜÜP]],Parameetrid[PROJEKTI TÜÜP],0),MATCH(Andmed[[#Headers],[TÄISOSANIK]],Parameetrid[#Headers],0))*INDEX('PROJEKTI PARAMEETRID'!$B$12:$H$12,1,MATCH(Andmed[[#Headers],[TÄISOSANIK]],Parameetrid[#Headers],0))*Andmed[[#This Row],[HINNANGULINE TÖÖ MAHT]]","v":{"v":35000,"d":"35,000 €"}},{"$f":"INDEX(Parameetrid[],MATCH(Andmed[[#This Row],[PROJEKTI TÜÜP]],Parameetrid[PROJEKTI TÜÜP],0),MATCH(Andmed[[#Headers],[ÄRIÕIGUSE ADVOKAAT]],Parameetrid[#Headers],0))*INDEX('PROJEKTI PARAMEETRID'!$B$12:$H$12,1,MATCH(Andmed[[#Headers],[ÄRIÕIGUSE ADVOKAAT]],Parameetrid[#Headers],0))*Andmed[[#This Row],[HINNANGULINE TÖÖ MAHT]]","v":{"v":0,"d":"0 €"}},{"$f":"INDEX(Parameetrid[],MATCH(Andmed[[#This Row],[PROJEKTI TÜÜP]],Parameetrid[PROJEKTI TÜÜP],0),MATCH(Andmed[[#Headers],[KAITSJA]],Parameetrid[#Headers],0))*INDEX('PROJEKTI PARAMEETRID'!$B$12:$H$12,1,MATCH(Andmed[[#Headers],[KAITSJA]],Parameetrid[#Headers],0))*Andmed[[#This Row],[HINNANGULINE TÖÖ MAHT]]","v":{"v":75000,"d":"75,000 €"}},{"$f":"INDEX(Parameetrid[],MATCH(Andmed[[#This Row],[PROJEKTI TÜÜP]],Parameetrid[PROJEKTI TÜÜP],0),MATCH(Andmed[[#Headers],[INTELLEKTUAALSE OMANDI ADVOKAAT]],Parameetrid[#Headers],0))*INDEX('PROJEKTI PARAMEETRID'!$B$12:$H$12,1,MATCH(Andmed[[#Headers],[INTELLEKTUAALSE OMANDI ADVOKAAT]],Parameetrid[#Headers],0))*Andmed[[#This Row],[HINNANGULINE TÖÖ MAHT]]","v":{"v":0,"d":"0 €"}},{"$f":"INDEX(Parameetrid[],MATCH(Andmed[[#This Row],[PROJEKTI TÜÜP]],Parameetrid[PROJEKTI TÜÜP],0),MATCH(Andmed[[#Headers],[PANKROTIADVOKAAT]],Parameetrid[#Headers],0))*INDEX('PROJEKTI PARAMEETRID'!$B$12:$H$12,1,MATCH(Andmed[[#Headers],[PANKROTIADVOKAAT]],Parameetrid[#Headers],0))*Andmed[[#This Row],[HINNANGULINE TÖÖ MAHT]]","v":{"v":0,"d":"0 €"}},{"$f":"INDEX(Parameetrid[],MATCH(Andmed[[#This Row],[PROJEKTI TÜÜP]],Parameetrid[PROJEKTI TÜÜP],0),MATCH(Andmed[[#Headers],[HALDUSPERSONAL]],Parameetrid[#Headers],0))*INDEX('PROJEKTI PARAMEETRID'!$B$12:$H$12,1,MATCH(Andmed[[#Headers],[HALDUSPERSONAL]],Parameetrid[#Headers],0))*Andmed[[#This Row],[HINNANGULINE TÖÖ MAHT]]","v":{"v":18750,"d":"18,750 €"}},{"$f":"INDEX(Parameetrid[],MATCH(Andmed[[#This Row],[PROJEKTI TÜÜP]],Parameetrid[PROJEKTI TÜÜP],0),MATCH(Andmed[[#Headers],[TÄISOSANIK]],Parameetrid[#Headers],0))*INDEX('PROJEKTI PARAMEETRID'!$B$12:$H$12,1,MATCH(Andmed[[#Headers],[TÄISOSANIK]],Parameetrid[#Headers],0))*Andmed[[#This Row],[TEGELIK TÖÖ MAHT]]","v":{"v":35000,"d":"35,000 €"}},{"$f":"INDEX(Parameetrid[],MATCH(Andmed[[#This Row],[PROJEKTI TÜÜP]],Parameetrid[PROJEKTI TÜÜP],0),MATCH(Andmed[[#Headers],[ÄRIÕIGUSE ADVOKAAT]],Parameetrid[#Headers],0))*INDEX('PROJEKTI PARAMEETRID'!$B$12:$H$12,1,MATCH(Andmed[[#Headers],[ÄRIÕIGUSE ADVOKAAT]],Parameetrid[#Headers],0))*Andmed[[#This Row],[TEGELIK TÖÖ MAHT]]","v":{"v":0,"d":"0 €"}},{"$f":"INDEX(Parameetrid[],MATCH(Andmed[[#This Row],[PROJEKTI TÜÜP]],Parameetrid[PROJEKTI TÜÜP],0),MATCH(Andmed[[#Headers],[KAITSJA]],Parameetrid[#Headers],0))*INDEX('PROJEKTI PARAMEETRID'!$B$12:$H$12,1,MATCH(Andmed[[#Headers],[KAITSJA]],Parameetrid[#Headers],0))*Andmed[[#This Row],[TEGELIK TÖÖ MAHT]]","v":{"v":75000,"d":"75,000 €"}},{"$f":"INDEX(Parameetrid[],MATCH(Andmed[[#This Row],[PROJEKTI TÜÜP]],Parameetrid[PROJEKTI TÜÜP],0),MATCH(Andmed[[#Headers],[INTELLEKTUAALSE OMANDI ADVOKAAT]],Parameetrid[#Headers],0))*INDEX('PROJEKTI PARAMEETRID'!$B$12:$H$12,1,MATCH(Andmed[[#Headers],[INTELLEKTUAALSE OMANDI ADVOKAAT]],Parameetrid[#Headers],0))*Andmed[[#This Row],[TEGELIK TÖÖ MAHT]]","v":{"v":0,"d":"0 €"}},{"$f":"INDEX(Parameetrid[],MATCH(Andmed[[#This Row],[PROJEKTI TÜÜP]],Parameetrid[PROJEKTI TÜÜP],0),MATCH(Andmed[[#Headers],[PANKROTIADVOKAAT]],Parameetrid[#Headers],0))*INDEX('PROJEKTI PARAMEETRID'!$B$12:$H$12,1,MATCH(Andmed[[#Headers],[PANKROTIADVOKAAT]],Parameetrid[#Headers],0))*Andmed[[#This Row],[TEGELIK TÖÖ MAHT]]","v":{"v":0,"d":"0 €"}},{"$f":"INDEX(Parameetrid[],MATCH(Andmed[[#This Row],[PROJEKTI TÜÜP]],Parameetrid[PROJEKTI TÜÜP],0),MATCH(Andmed[[#Headers],[HALDUSPERSONAL]],Parameetrid[#Headers],0))*INDEX('PROJEKTI PARAMEETRID'!$B$12:$H$12,1,MATCH(Andmed[[#Headers],[HALDUSPERSONAL]],Parameetrid[#Headers],0))*Andmed[[#This Row],[TEGELIK TÖÖ MAHT]]","v":{"v":18750,"d":"18,750 €"}}]
[null,"Projekt 4","Patenditaotlus",{"$f":"TODAY()+200","v":"2019-09-06"},{"$f":"TODAY()+230","v":"2019-10-06"},{"$f":"TODAY()+230","v":"2019-10-06"},{"$f":"TODAY()+230","v":"2019-10-06"},150,145,{"$f":"DAYS360(Andmed[[#This Row],[HINNANGULINE ALGUSAEG]],Andmed[[#This Row],[HINNANGULINE LÕPPAEG]],FALSE)","v":30},{"$f":"DAYS360(Andmed[[#This Row],[TEGELIK ALGUSAEG]],Andmed[[#This Row],[TEGELIK LÕPPAEG]],FALSE)","v":0},{"$f":"INDEX(Parameetrid[],MATCH(Andmed[[#This Row],[PROJEKTI TÜÜP]],Parameetrid[PROJEKTI TÜÜP],0),MATCH(Andmed[[#Headers],[TÄISOSANIK]],Parameetrid[#Headers],0))*INDEX('PROJEKTI PARAMEETRID'!$B$12:$H$12,1,MATCH(Andmed[[#Headers],[TÄISOSANIK]],Parameetrid[#Headers],0))*Andmed[[#This Row],[HINNANGULINE TÖÖ MAHT]]","v":{"v":5250,"d":"5,250 €"}},{"$f":"INDEX(Parameetrid[],MATCH(Andmed[[#This Row],[PROJEKTI TÜÜP]],Parameetrid[PROJEKTI TÜÜP],0),MATCH(Andmed[[#Headers],[ÄRIÕIGUSE ADVOKAAT]],Parameetrid[#Headers],0))*INDEX('PROJEKTI PARAMEETRID'!$B$12:$H$12,1,MATCH(Andmed[[#Headers],[ÄRIÕIGUSE ADVOKAAT]],Parameetrid[#Headers],0))*Andmed[[#This Row],[HINNANGULINE TÖÖ MAHT]]","v":{"v":0,"d":"0 €"}},{"$f":"INDEX(Parameetrid[],MATCH(Andmed[[#This Row],[PROJEKTI TÜÜP]],Parameetrid[PROJEKTI TÜÜP],0),MATCH(Andmed[[#Headers],[KAITSJA]],Parameetrid[#Headers],0))*INDEX('PROJEKTI PARAMEETRID'!$B$12:$H$12,1,MATCH(Andmed[[#Headers],[KAITSJA]],Parameetrid[#Headers],0))*Andmed[[#This Row],[HINNANGULINE TÖÖ MAHT]]","v":{"v":0,"d":"0 €"}},{"$f":"INDEX(Parameetrid[],MATCH(Andmed[[#This Row],[PROJEKTI TÜÜP]],Parameetrid[PROJEKTI TÜÜP],0),MATCH(Andmed[[#Headers],[INTELLEKTUAALSE OMANDI ADVOKAAT]],Parameetrid[#Headers],0))*INDEX('PROJEKTI PARAMEETRID'!$B$12:$H$12,1,MATCH(Andmed[[#Headers],[INTELLEKTUAALSE OMANDI ADVOKAAT]],Parameetrid[#Headers],0))*Andmed[[#This Row],[HINNANGULINE TÖÖ MAHT]]","v":{"v":24750,"d":"24,750 €"}},{"$f":"INDEX(Parameetrid[],MATCH(Andmed[[#This Row],[PROJEKTI TÜÜP]],Parameetrid[PROJEKTI TÜÜP],0),MATCH(Andmed[[#Headers],[PANKROTIADVOKAAT]],Parameetrid[#Headers],0))*INDEX('PROJEKTI PARAMEETRID'!$B$12:$H$12,1,MATCH(Andmed[[#Headers],[PANKROTIADVOKAAT]],Parameetrid[#Headers],0))*Andmed[[#This Row],[HINNANGULINE TÖÖ MAHT]]","v":{"v":0,"d":"0 €"}},{"$f":"INDEX(Parameetrid[],MATCH(Andmed[[#This Row],[PROJEKTI TÜÜP]],Parameetrid[PROJEKTI TÜÜP],0),MATCH(Andmed[[#Headers],[HALDUSPERSONAL]],Parameetrid[#Headers],0))*INDEX('PROJEKTI PARAMEETRID'!$B$12:$H$12,1,MATCH(Andmed[[#Headers],[HALDUSPERSONAL]],Parameetrid[#Headers],0))*Andmed[[#This Row],[HINNANGULINE TÖÖ MAHT]]","v":{"v":5625,"d":"5,625 €"}},{"$f":"INDEX(Parameetrid[],MATCH(Andmed[[#This Row],[PROJEKTI TÜÜP]],Parameetrid[PROJEKTI TÜÜP],0),MATCH(Andmed[[#Headers],[TÄISOSANIK]],Parameetrid[#Headers],0))*INDEX('PROJEKTI PARAMEETRID'!$B$12:$H$12,1,MATCH(Andmed[[#Headers],[TÄISOSANIK]],Parameetrid[#Headers],0))*Andmed[[#This Row],[TEGELIK TÖÖ MAHT]]","v":{"v":5075,"d":"5,075 €"}},{"$f":"INDEX(Parameetrid[],MATCH(Andmed[[#This Row],[PROJEKTI TÜÜP]],Parameetrid[PROJEKTI TÜÜP],0),MATCH(Andmed[[#Headers],[ÄRIÕIGUSE ADVOKAAT]],Parameetrid[#Headers],0))*INDEX('PROJEKTI PARAMEETRID'!$B$12:$H$12,1,MATCH(Andmed[[#Headers],[ÄRIÕIGUSE ADVOKAAT]],Parameetrid[#Headers],0))*Andmed[[#This Row],[TEGELIK TÖÖ MAHT]]","v":{"v":0,"d":"0 €"}},{"$f":"INDEX(Parameetrid[],MATCH(Andmed[[#This Row],[PROJEKTI TÜÜP]],Parameetrid[PROJEKTI TÜÜP],0),MATCH(Andmed[[#Headers],[KAITSJA]],Parameetrid[#Headers],0))*INDEX('PROJEKTI PARAMEETRID'!$B$12:$H$12,1,MATCH(Andmed[[#Headers],[KAITSJA]],Parameetrid[#Headers],0))*Andmed[[#This Row],[TEGELIK TÖÖ MAHT]]","v":{"v":0,"d":"0 €"}},{"$f":"INDEX(Parameetrid[],MATCH(Andmed[[#This Row],[PROJEKTI TÜÜP]],Parameetrid[PROJEKTI TÜÜP],0),MATCH(Andmed[[#Headers],[INTELLEKTUAALSE OMANDI ADVOKAAT]],Parameetrid[#Headers],0))*INDEX('PROJEKTI PARAMEETRID'!$B$12:$H$12,1,MATCH(Andmed[[#Headers],[INTELLEKTUAALSE OMANDI ADVOKAAT]],Parameetrid[#Headers],0))*Andmed[[#This Row],[TEGELIK TÖÖ MAHT]]","v":{"v":23925,"d":"23,925 €"}},{"$f":"INDEX(Parameetrid[],MATCH(Andmed[[#This Row],[PROJEKTI TÜÜP]],Parameetrid[PROJEKTI TÜÜP],0),MATCH(Andmed[[#Headers],[PANKROTIADVOKAAT]],Parameetrid[#Headers],0))*INDEX('PROJEKTI PARAMEETRID'!$B$12:$H$12,1,MATCH(Andmed[[#Headers],[PANKROTIADVOKAAT]],Parameetrid[#Headers],0))*Andmed[[#This Row],[TEGELIK TÖÖ MAHT]]","v":{"v":0,"d":"0 €"}},{"$f":"INDEX(Parameetrid[],MATCH(Andmed[[#This Row],[PROJEKTI TÜÜP]],Parameetrid[PROJEKTI TÜÜP],0),MATCH(Andmed[[#Headers],[HALDUSPERSONAL]],Parameetrid[#Headers],0))*INDEX('PROJEKTI PARAMEETRID'!$B$12:$H$12,1,MATCH(Andmed[[#Headers],[HALDUSPERSONAL]],Parameetrid[#Headers],0))*Andmed[[#This Row],[TEGELIK TÖÖ MAHT]]","v":{"v":5437.5,"d":"5,438 €"}}]
[null,"Projekt 5","Töötaja hagi",{"$f":"TODAY()+220","v":"2019-09-26"},{"$f":"TODAY()+250","v":"2019-10-26"},{"$f":"TODAY()+230","v":"2019-10-06"},{"$f":"TODAY()+259","v":"2019-11-04"},250,255,{"$f":"DAYS360(Andmed[[#This Row],[HINNANGULINE ALGUSAEG]],Andmed[[#This Row],[HINNANGULINE LÕPPAEG]],FALSE)","v":30},{"$f":"DAYS360(Andmed[[#This Row],[TEGELIK ALGUSAEG]],Andmed[[#This Row],[TEGELIK LÕPPAEG]],FALSE)","v":28},{"$f":"INDEX(Parameetrid[],MATCH(Andmed[[#This Row],[PROJEKTI TÜÜP]],Parameetrid[PROJEKTI TÜÜP],0),MATCH(Andmed[[#Headers],[TÄISOSANIK]],Parameetrid[#Headers],0))*INDEX('PROJEKTI PARAMEETRID'!$B$12:$H$12,1,MATCH(Andmed[[#Headers],[TÄISOSANIK]],Parameetrid[#Headers],0))*Andmed[[#This Row],[HINNANGULINE TÖÖ MAHT]]","v":{"v":17500,"d":"17,500 €"}},{"$f":"INDEX(Parameetrid[],MATCH(Andmed[[#This Row],[PROJEKTI TÜÜP]],Parameetrid[PROJEKTI TÜÜP],0),MATCH(Andmed[[#Headers],[ÄRIÕIGUSE ADVOKAAT]],Parameetrid[#Headers],0))*INDEX('PROJEKTI PARAMEETRID'!$B$12:$H$12,1,MATCH(Andmed[[#Headers],[ÄRIÕIGUSE ADVOKAAT]],Parameetrid[#Headers],0))*Andmed[[#This Row],[HINNANGULINE TÖÖ MAHT]]","v":{"v":6250,"d":"6,250 €"}},{"$f":"INDEX(Parameetrid[],MATCH(Andmed[[#This Row],[PROJEKTI TÜÜP]],Parameetrid[PROJEKTI TÜÜP],0),MATCH(Andmed[[#Headers],[KAITSJA]],Parameetrid[#Headers],0))*INDEX('PROJEKTI PARAMEETRID'!$B$12:$H$12,1,MATCH(Andmed[[#Headers],[KAITSJA]],Parameetrid[#Headers],0))*Andmed[[#This Row],[HINNANGULINE TÖÖ MAHT]]","v":{"v":30000,"d":"30,000 €"}},{"$f":"INDEX(Parameetrid[],MATCH(Andmed[[#This Row],[PROJEKTI TÜÜP]],Parameetrid[PROJEKTI TÜÜP],0),MATCH(Andmed[[#Headers],[INTELLEKTUAALSE OMANDI ADVOKAAT]],Parameetrid[#Headers],0))*INDEX('PROJEKTI PARAMEETRID'!$B$12:$H$12,1,MATCH(Andmed[[#Headers],[INTELLEKTUAALSE OMANDI ADVOKAAT]],Parameetrid[#Headers],0))*Andmed[[#This Row],[HINNANGULINE TÖÖ MAHT]]","v":{"v":0,"d":"0 €"}},{"$f":"INDEX(Parameetrid[],MATCH(Andmed[[#This Row],[PROJEKTI TÜÜP]],Parameetrid[PROJEKTI TÜÜP],0),MATCH(Andmed[[#Headers],[PANKROTIADVOKAAT]],Parameetrid[#Headers],0))*INDEX('PROJEKTI PARAMEETRID'!$B$12:$H$12,1,MATCH(Andmed[[#Headers],[PANKROTIADVOKAAT]],Parameetrid[#Headers],0))*Andmed[[#This Row],[HINNANGULINE TÖÖ MAHT]]","v":{"v":0,"d":"0 €"}},{"$f":"INDEX(Parameetrid[],MATCH(Andmed[[#This Row],[PROJEKTI TÜÜP]],Parameetrid[PROJEKTI TÜÜP],0),MATCH(Andmed[[#Headers],[HALDUSPERSONAL]],Parameetrid[#Headers],0))*INDEX('PROJEKTI PARAMEETRID'!$B$12:$H$12,1,MATCH(Andmed[[#Headers],[HALDUSPERSONAL]],Parameetrid[#Headers],0))*Andmed[[#This Row],[HINNANGULINE TÖÖ MAHT]]","v":{"v":9375,"d":"9,375 €"}},{"$f":"INDEX(Parameetrid[],MATCH(Andmed[[#This Row],[PROJEKTI TÜÜP]],Parameetrid[PROJEKTI TÜÜP],0),MATCH(Andmed[[#Headers],[TÄISOSANIK]],Parameetrid[#Headers],0))*INDEX('PROJEKTI PARAMEETRID'!$B$12:$H$12,1,MATCH(Andmed[[#Headers],[TÄISOSANIK]],Parameetrid[#Headers],0))*Andmed[[#This Row],[TEGELIK TÖÖ MAHT]]","v":{"v":17850,"d":"17,850 €"}},{"$f":"INDEX(Parameetrid[],MATCH(Andmed[[#This Row],[PROJEKTI TÜÜP]],Parameetrid[PROJEKTI TÜÜP],0),MATCH(Andmed[[#Headers],[ÄRIÕIGUSE ADVOKAAT]],Parameetrid[#Headers],0))*INDEX('PROJEKTI PARAMEETRID'!$B$12:$H$12,1,MATCH(Andmed[[#Headers],[ÄRIÕIGUSE ADVOKAAT]],Parameetrid[#Headers],0))*Andmed[[#This Row],[TEGELIK TÖÖ MAHT]]","v":{"v":6375,"d":"6,375 €"}},{"$f":"INDEX(Parameetrid[],MATCH(Andmed[[#This Row],[PROJEKTI TÜÜP]],Parameetrid[PROJEKTI TÜÜP],0),MATCH(Andmed[[#Headers],[KAITSJA]],Parameetrid[#Headers],0))*INDEX('PROJEKTI PARAMEETRID'!$B$12:$H$12,1,MATCH(Andmed[[#Headers],[KAITSJA]],Parameetrid[#Headers],0))*Andmed[[#This Row],[TEGELIK TÖÖ MAHT]]","v":{"v":30600,"d":"30,600 €"}},{"$f":"INDEX(Parameetrid[],MATCH(Andmed[[#This Row],[PROJEKTI TÜÜP]],Parameetrid[PROJEKTI TÜÜP],0),MATCH(Andmed[[#Headers],[INTELLEKTUAALSE OMANDI ADVOKAAT]],Parameetrid[#Headers],0))*INDEX('PROJEKTI PARAMEETRID'!$B$12:$H$12,1,MATCH(Andmed[[#Headers],[INTELLEKTUAALSE OMANDI ADVOKAAT]],Parameetrid[#Headers],0))*Andmed[[#This Row],[TEGELIK TÖÖ MAHT]]","v":{"v":0,"d":"0 €"}},{"$f":"INDEX(Parameetrid[],MATCH(Andmed[[#This Row],[PROJEKTI TÜÜP]],Parameetrid[PROJEKTI TÜÜP],0),MATCH(Andmed[[#Headers],[PANKROTIADVOKAAT]],Parameetrid[#Headers],0))*INDEX('PROJEKTI PARAMEETRID'!$B$12:$H$12,1,MATCH(Andmed[[#Headers],[PANKROTIADVOKAAT]],Parameetrid[#Headers],0))*Andmed[[#This Row],[TEGELIK TÖÖ MAHT]]","v":{"v":0,"d":"0 €"}},{"$f":"INDEX(Parameetrid[],MATCH(Andmed[[#This Row],[PROJEKTI TÜÜP]],Parameetrid[PROJEKTI TÜÜP],0),MATCH(Andmed[[#Headers],[HALDUSPERSONAL]],Parameetrid[#Headers],0))*INDEX('PROJEKTI PARAMEETRID'!$B$12:$H$12,1,MATCH(Andmed[[#Headers],[HALDUSPERSONAL]],Parameetrid[#Headers],0))*Andmed[[#This Row],[TEGELIK TÖÖ MAHT]]","v":{"v":9562.5,"d":"9,563 €"}}]
[null,"KOKKU",{"$nulls":5},{"$f":"SUBTOTAL(109,Andmed[HINNANGULINE TÖÖ MAHT])","v":1500},{"$f":"SUBTOTAL(109,Andmed[TEGELIK TÖÖ MAHT])","v":1510},{"$f":"SUBTOTAL(109,Andmed[HINNANGULINE KESTUS])","v":190},{"$f":"SUBTOTAL(109,Andmed[TEGELIK KESTUS])","v":169}]

{"sheet":"PROJEKTI KOKKUVÕTTED","index":3,"n_rows":11,"n_cols":16,"rows_kept":11,"merged":[[3,2,3,7],[3,8,3,13],[3,15,14,19]]}
["Sellel töölehel saate Projekti kokkuvõtted. Paremal asuvas lahtris värskendatakse ettevõtte nimi automaatselt. Selle veeru lahtritest leiate kasulikke juhiseid. Liikuge alustamiseks noolega alla.",{"$f":"'PROJEKTI PARAMEETRID'!B1","v":"Ettevõtte nimi"}]
["Paremal asuvas lahtris on selle töölehe pealkiri.",{"$f":"'PROJEKTI PARAMEETRID'!B2","v":"Projektide kavandamine advokaadibüroodele"}]
["Paremal asuvas lahtris on konfidentsiaalsusteade.",{"$f":"'PROJEKTI PARAMEETRID'!B3","v":"Ettevõtte nimi – konfidentsiaalne"}]
["Lahtris C4 on hinnanguline silt, tegelik silt lahtris I4 ning näpunäide lahtris P4.",null,"HINNANGULINE",{"$nulls":5},"TEGELIK",{"$nulls":6},"TEAVE: \nSeda PivotTable-liigendtabelit ei värskendata automaatselt.  Värskendamiseks valige see (mis tahes PivotTable-liigendtabeli lahter) ja valige lindi menüüs PIVOTTABLE-LIIGENDTABELI TÖÖRIISTAD | ANALÜÜS nupp Värskenda.  Või vajutage klahvikombinatsiooni Shift + F10, valides PivotTable-liigendtabel ja valides käsk Värskenda."]
["Paremal asuvast reast algav PivotTable-liigendtabel värskendatakse automaatselt","PROJEKTI NIMI","TÄISOSANIK","ÄRI","KAITSJA","INTELLEKTUAALNE OMAND","PANKROTT","HALDUSPERSONAL","TÄISOSANIK","ÄRI","KAITSJA","PANKROTT","INTELLEKTUAALNE OMAND","HALDUSPERSONAL"]
[null,"Projekt 1",{"v":7000,"d":"7,000.00 €"},{"v":20000,"d":"20,000.00 €"},{"v":0,"d":"0.00 €"},{"v":0,"d":"0.00 €"},{"v":0,"d":"0.00 €"},{"v":12500,"d":"12,500.00 €"},{"v":7700,"d":"7,700.00 €"},{"v":22000,"d":"22,000.00 €"},{"v":0,"d":"0.00 €"},{"v":0,"d":"0.00 €"},{"v":0,"d":"0.00 €"},{"v":13750,"d":"13,750.00 €"}]
[null,"Projekt 2",{"v":14000,"d":"14,000.00 €"},{"v":40000,"d":"40,000.00 €"},{"v":0,"d":"0.00 €"},{"v":11000,"d":"11,000.00 €"},{"v":0,"d":"0.00 €"},{"v":20000,"d":"20,000.00 €"},{"v":13650,"d":"13,650.00 €"},{"v":39000,"d":"39,000.00 €"},{"v":0,"d":"0.00 €"},{"v":10725,"d":"10,725.00 €"},{"v":0,"d":"0.00 €"},{"v":19500,"d":"19,500.00 €"}]
[null,"Projekt 3",{"v":35000,"d":"35,000.00 €"},{"v":0,"d":"0.00 €"},{"v":75000,"d":"75,000.00 €"},{"v":0,"d":"0.00 €"},{"v":0,"d":"0.00 €"},{"v":18750,"d":"18,750.00 €"},{"v":35000,"d":"35,000.00 €"},{"v":0,"d":"0.00 €"},{"v":75000,"d":"75,000.00 €"},{"v":0,"d":"0.00 €"},{"v":0,"d":"0.00 €"},{"v":18750,"d":"18,750.00 €"}]
[null,"Projekt 4",{"v":5250,"d":"5,250.00 €"},{"v":0,"d":"0.00 €"},{"v":0,"d":"0.00 €"},{"v":24750,"d":"24,750.00 €"},{"v":0,"d":"0.00 €"},{"v":5625,"d":"5,625.00 €"},{"v":5075,"d":"5,075.00 €"},{"v":0,"d":"0.00 €"},{"v":0,"d":"0.00 €"},{"v":23925,"d":"23,925.00 €"},{"v":0,"d":"0.00 €"},{"v":5437.5,"d":"5,437.50 €"}]
[null,"Projekt 5",{"v":17500,"d":"17,500.00 €"},{"v":6250,"d":"6,250.00 €"},{"v":30000,"d":"30,000.00 €"},{"v":0,"d":"0.00 €"},{"v":0,"d":"0.00 €"},{"v":9375,"d":"9,375.00 €"},{"v":17850,"d":"17,850.00 €"},{"v":6375,"d":"6,375.00 €"},{"v":30600,"d":"30,600.00 €"},{"v":0,"d":"0.00 €"},{"v":0,"d":"0.00 €"},{"v":9562.5,"d":"9,562.50 €"}]
[null,"Üldkokkuvõte",{"v":78750,"d":"78,750.00 €"},{"v":66250,"d":"66,250.00 €"},{"v":105000,"d":"105,000.00 €"},{"v":35750,"d":"35,750.00 €"},{"v":0,"d":"0.00 €"},{"v":66250,"d":"66,250.00 €"},{"v":79275,"d":"79,275.00 €"},{"v":67375,"d":"67,375.00 €"},{"v":105600,"d":"105,600.00 €"},{"v":34650,"d":"34,650.00 €"},{"v":0,"d":"0.00 €"},{"v":67000,"d":"67,000.00 €"}]